[Event "*** Titled Tuesday Blitz"]
[Site "Chess.com"]
[Date "2018.08.07"]
[Round "1"]
[White "BillieKimbah"]
[Black "tomsishere"]
[Result "1-0"]
[WhiteElo "2814"]
[BlackElo "2388"]
[TimeControl "180+2"]
[EndTime "13:09:26 PDT"]
[Termination "BillieKimbah won by resignation"]

1. Nf3 {[%clk 0:02:56.4]} 1... c5 {[%clk 0:02:53.9]} 2. b3 {[%clk 0:02:56.7]}
2... Nc6 {[%clk 0:02:53.1]} 3. Bb2 {[%clk 0:02:57.5]} 3... d6 {[%clk 0:02:54]}
4. e3 {[%clk 0:02:56.3]} 4... e5 {[%clk 0:02:51.4]} 5. c4 {[%clk 0:02:50.6]}
5... e4 {[%clk 0:02:49.4]} 6. Ng1 {[%clk 0:02:51.1]} 6... Nf6 {[%clk 0:02:49.7]}
7. Nc3 {[%clk 0:02:48.7]} 7... Be7 {[%clk 0:02:50]} 8. Nge2 {[%clk 0:02:48.9]}
8... Bf5 {[%clk 0:02:46.4]} 9. h3 {[%clk 0:02:47.7]} 9... Ne5 {[%clk 0:02:39.7]}
10. Nf4 {[%clk 0:02:21.9]} 10... a6 {[%clk 0:02:13.4]} 11. Be2 {[%clk
0:02:21.9]} 11... Rb8 {[%clk 0:02:12.4]} 12. g4 {[%clk 0:02:18.8]} 12... Bg6
{[%clk 0:01:59]} 13. g5 {[%clk 0:02:19.4]} 13... Nfd7 {[%clk 0:01:56.4]} 14.
Nxg6 {[%clk 0:02:17.1]} 14... hxg6 {[%clk 0:01:55.6]} 15. Nxe4 {[%clk
0:02:17.6]} 15... b5 {[%clk 0:01:50.6]} 16. f4 {[%clk 0:02:15.9]} 16... Nc6
{[%clk 0:01:42.9]} 17. Bxg7 {[%clk 0:02:16.1]} 17... Rh7 {[%clk 0:01:42.3]} 18.
Bc3 {[%clk 0:02:13.4]} 18... bxc4 {[%clk 0:01:39.2]} 19. bxc4 {[%clk 0:02:02]}
19... Nb6 {[%clk 0:01:11.9]} 20. Bf6 {[%clk 0:01:54.3]} 20... Kf8 {[%clk
0:00:59.2]} 21. Rb1 {[%clk 0:01:43.6]} 21... d5 {[%clk 0:00:45.4]} 22. Bxe7+
{[%clk 0:01:42.6]} 22... Nxe7 {[%clk 0:00:30.7]} 23. Nf6 {[%clk 0:01:43.1]}
23... Rh4 {[%clk 0:00:30]} 24. cxd5 {[%clk 0:01:33]} 24... Nexd5 {[%clk
0:00:29.4]} 25. Ng4 {[%clk 0:01:20.5]} 25... c4 {[%clk 0:00:26.3]} 26. Kf2
{[%clk 0:01:14]} 26... Qe7 {[%clk 0:00:24.4]} 27. Bf3 {[%clk 0:01:13]} 27... Rd8
{[%clk 0:00:21.4]} 28. Kg3 {[%clk 0:00:58.9]} 28... Rh8 {[%clk 0:00:19.6]} 29.
Qc2 {[%clk 0:00:57.3]} 29... c3 {[%clk 0:00:20]} 30. e4 {[%clk 0:00:39.4]} 30...
Nxf4 {[%clk 0:00:13.5]} 31. Qxc3 {[%clk 0:00:33.8]} 31... Nh5+ {[%clk 0:00:12]}
32. Kf2 {[%clk 0:00:33.1]} 32... Rg8 {[%clk 0:00:10.8]} 33. Rxb6 {[%clk
0:00:33.1]} 33... Qxg5 {[%clk 0:00:11.6]} 34. Ke1 {[%clk 0:00:16.1]} 34... Ng3
{[%clk 0:00:11.1]} 35. Rg1 {[%clk 0:00:15.8]} 35... Nxe4 {[%clk 0:00:10.6]} 36.
Bxe4 {[%clk 0:00:15.6]} 36... Re8 {[%clk 0:00:11.6]} 37. d3 {[%clk 0:00:15.7]}
37... Qh4+ {[%clk 0:00:08.1]} 38. Kd1 {[%clk 0:00:16.2]} 38... Qxh3 {[%clk
0:00:07.5]} 39. Qc5+ {[%clk 0:00:16.7]} 39... Kg7 {[%clk 0:00:06]} 40. Qd4+
{[%clk 0:00:18]} 40... Kf8 {[%clk 0:00:06.9]} 41. Qd6+ {[%clk 0:00:18.1]} 41...
Kg7 {[%clk 0:00:07.3]} 42. Qf6+ {[%clk 0:00:19]} 42... Kf8 {[%clk 0:00:08.3]}
43. Rb7 {[%clk 0:00:19.2]} 43... Rg7 {[%clk 0:00:06.9]} 44. Qd6+ {[%clk
0:00:15.5]} 44... Kg8 {[%clk 0:00:06.7]} 45. Nf6+ {[%clk 0:00:16.5]} 45... Kh8
{[%clk 0:00:07.7]} 46. Nxe8 {[%clk 0:00:16.4]} 46... Rh7 {[%clk 0:00:08.1]} 47.
Qe5+ {[%clk 0:00:16]} 47... Kg8 {[%clk 0:00:08.9]} 48. Nf6+ {[%clk 0:00:16.9]}
48... Kf8 {[%clk 0:00:08.3]} 49. Rb8+ {[%clk 0:00:16.1]} 49... Kg7 {[%clk
0:00:09]} 50. Ng4+ {[%clk 0:00:15.1]} 1-0

[Event "*** Titled Tuesday Blitz"]
[Site "Chess.com"]
[Date "2018.08.07"]
[Round "1"]
[White "Passacaglia23"]
[Black "KamilPlichta"]
[Result "0-1"]
[WhiteElo "2247"]
[BlackElo "2596"]
[TimeControl "180+2"]
[EndTime "13:09:26 PDT"]
[Termination "KamilPlichta won by resignation"]

1. d4 {[%clk 0:03:01.5]} 1... Nf6 {[%clk 0:03:00.7]} 2. c4 {[%clk 0:03:02.2]}
2... g6 {[%clk 0:03:02.1]} 3. f3 {[%clk 0:03:03.2]} 3... Bg7 {[%clk 0:03:03.5]}
4. e4 {[%clk 0:03:04.6]} 4... O-O {[%clk 0:03:04.9]} 5. Ne2 {[%clk 0:03:06.1]}
5... d6 {[%clk 0:03:06]} 6. Nbc3 {[%clk 0:03:07.6]} 6... c5 {[%clk 0:03:07.3]}
7. d5 {[%clk 0:03:09.1]} 7... e6 {[%clk 0:03:08.4]} 8. Ng3 {[%clk 0:03:10.6]}
8... exd5 {[%clk 0:03:09.6]} 9. cxd5 {[%clk 0:03:12.4]} 9... a6 {[%clk
0:03:10.3]} 10. a4 {[%clk 0:03:13.5]} 10... Nbd7 {[%clk 0:03:10.4]} 11. Be2
{[%clk 0:03:14.2]} 11... h5 {[%clk 0:03:11]} 12. Bg5 {[%clk 0:03:14.7]} 12...
Qc7 {[%clk 0:03:11.5]} 13. O-O {[%clk 0:03:12.1]} 13... Rb8 {[%clk 0:03:12.8]}
14. Qd2 {[%clk 0:03:11.2]} 14... c4 {[%clk 0:03:05.8]} 15. Be3 {[%clk
0:02:55.5]} 15... b5 {[%clk 0:02:47.5]} 16. axb5 {[%clk 0:02:55.6]} 16... axb5
{[%clk 0:02:49.4]} 17. Ra7 {[%clk 0:02:55.9]} 17... Qd8 {[%clk 0:02:50.9]} 18.
Na2 {[%clk 0:02:48.7]} 18... h4 {[%clk 0:02:35.5]} 19. Nh1 {[%clk 0:02:49.3]}
19... Ne5 {[%clk 0:02:05.7]} 20. Nb4 {[%clk 0:02:48.5]} 20... h3 {[%clk
0:02:04.8]} 21. f4 {[%clk 0:02:33.2]} 21... hxg2 {[%clk 0:02:03.6]} 22. Kxg2
{[%clk 0:02:33.5]} 22... Nxe4 {[%clk 0:01:52.2]} 23. Qc2 {[%clk 0:02:34.5]}
23... Qh4 {[%clk 0:01:46.7]} 24. Qxe4 {[%clk 0:02:05.5]} 24... Bh3+ {[%clk
0:01:37.2]} 25. Kg1 {[%clk 0:02:05.8]} 25... Bf5 {[%clk 0:01:38.5]} 26. Qg2
{[%clk 0:02:06.3]} 26... Nd3 {[%clk 0:01:32]} 27. Nxd3 {[%clk 0:01:41.8]} 27...
cxd3 {[%clk 0:01:33.2]} 28. Bf3 {[%clk 0:01:29.1]} 28... Rfe8 {[%clk 0:01:33.8]}
29. Bf2 {[%clk 0:01:26.8]} 29... Qxf4 {[%clk 0:01:34.8]} 30. Ng3 {[%clk
0:01:19.1]} 30... d2 {[%clk 0:01:30.8]} 31. Nxf5 {[%clk 0:01:15.1]} 31... Qxf5
{[%clk 0:01:32]} 32. Bg4 {[%clk 0:01:01.8]} 32... Qd3 {[%clk 0:01:20.9]} 33. Bd1
{[%clk 0:00:33.7]} 33... Re1 {[%clk 0:01:13.5]} 34. Bxe1 {[%clk 0:00:16.3]}
34... dxe1=Q {[%clk 0:01:11.5]} 35. Rxe1 {[%clk 0:00:14.3]} 35... Bd4+ {[%clk
0:01:12.6]} 36. Kh1 {[%clk 0:00:15.9]} 36... Bxa7 {[%clk 0:01:13.5]} 37. Bc2
{[%clk 0:00:15.8]} 37... Qd4 {[%clk 0:01:00]} 38. Rd1 {[%clk 0:00:09]} 38...
Qxb2 {[%clk 0:00:54.5]} 39. Qe4 {[%clk 0:00:05.1]} 39... Qf6 {[%clk 0:00:51.9]}
40. Re1 {[%clk 0:00:04.1]} 40... Bc5 {[%clk 0:00:51.2]} 41. Bb3 {[%clk
0:00:04.4]} 41... Kg7 {[%clk 0:00:51.2]} 42. Qg2 {[%clk 0:00:05.4]} 42... Rh8
{[%clk 0:00:51.3]} 43. Rf1 {[%clk 0:00:06.6]} 43... Qe5 {[%clk 0:00:48.2]} 44.
h3 {[%clk 0:00:06.7]} 44... Rh4 {[%clk 0:00:39.9]} 45. Qf3 {[%clk 0:00:07.4]}
45... f5 {[%clk 0:00:39.6]} 46. Bc2 {[%clk 0:00:08.5]} 46... b4 {[%clk
0:00:35.8]} 47. Qg2 {[%clk 0:00:09.6]} 47... Qc3 {[%clk 0:00:35.8]} 48. Bxf5
{[%clk 0:00:09.9]} 48... Rh6 {[%clk 0:00:36]} 49. Be6 {[%clk 0:00:09.7]} 49...
Rh5 {[%clk 0:00:23.8]} 50. Rf7+ {[%clk 0:00:09.3]} 50... Kh6 {[%clk 0:00:25.1]}
51. Rf8 {[%clk 0:00:06.4]} 51... Bd4 {[%clk 0:00:22.3]} 52. Rg8 {[%clk
0:00:05.3]} 52... Qc1+ {[%clk 0:00:20.5]} 53. Kh2 {[%clk 0:00:06]} 53... Be5+
{[%clk 0:00:21.8]} 54. Qg3 {[%clk 0:00:07.5]} 54... Bxg3+ {[%clk 0:00:22.7]} 55.
Kxg3 {[%clk 0:00:09.4]} 55... Qe3+ {[%clk 0:00:23.9]} 0-1

[Event "*** Titled Tuesday Blitz"]
[Site "Chess.com"]
[Date "2018.08.07"]
[Round "1"]
[White "senecacrane"]
[Black "Cryptochess"]
[Result "0-1"]
[WhiteElo "2128"]
[BlackElo "2490"]
[TimeControl "180+2"]
[EndTime "13:09:27 PDT"]
[Termination "Cryptochess won by resignation"]

1. d4 {[%clk 0:03:01.9]} 1... Nf6 {[%clk 0:03:00.4]} 2. c4 {[%clk 0:03:02.7]}
2... e6 {[%clk 0:03:01.7]} 3. Nc3 {[%clk 0:03:03.4]} 3... Bb4 {[%clk 0:03:03.3]}
4. Qc2 {[%clk 0:03:04.5]} 4... Nc6 {[%clk 0:03:04.1]} 5. Nf3 {[%clk 0:03:01.1]}
5... d6 {[%clk 0:03:03.9]} 6. Bd2 {[%clk 0:03:01]} 6... O-O {[%clk 0:03:04.1]}
7. e3 {[%clk 0:03:00.2]} 7... e5 {[%clk 0:03:04.5]} 8. a3 {[%clk 0:03:00.1]}
8... Bxc3 {[%clk 0:03:01.1]} 9. Bxc3 {[%clk 0:03:00.7]} 9... Qe7 {[%clk
0:03:01.9]} 10. Be2 {[%clk 0:03:00.4]} 10... a5 {[%clk 0:03:02.5]} 11. O-O
{[%clk 0:03:00.5]} 11... a4 {[%clk 0:03:03.5]} 12. Rfd1 {[%clk 0:02:56.6]} 12...
Bg4 {[%clk 0:03:03.7]} 13. dxe5 {[%clk 0:02:55.1]} 13... dxe5 {[%clk 0:03:01.5]}
14. h3 {[%clk 0:02:53.4]} 14... Bh5 {[%clk 0:03:01.5]} 15. Rd2 {[%clk
0:02:42.5]} 15... Bg6 {[%clk 0:03:01.7]} 16. Qd1 {[%clk 0:02:37]} 16... Ne4
{[%clk 0:02:59.6]} 17. Rd7 {[%clk 0:02:28.9]} 17... Nxc3 {[%clk 0:03:00.6]} 18.
bxc3 {[%clk 0:02:29.8]} 18... Qc5 {[%clk 0:02:58.4]} 19. Rxc7 {[%clk 0:02:21]}
19... Qa5 {[%clk 0:02:50.2]} 20. Rxb7 {[%clk 0:02:15.7]} 20... Qxc3 {[%clk
0:02:50.9]} 21. Rc7 {[%clk 0:02:07.9]} 21... Na5 {[%clk 0:02:43.7]} 22. Qc1
{[%clk 0:01:59.4]} 22... Qxc1+ {[%clk 0:02:12.6]} 23. Rxc1 {[%clk 0:01:59.1]}
23... f6 {[%clk 0:02:14.2]} 24. Nh4 {[%clk 0:01:50.6]} 24... Bf7 {[%clk
0:02:14.8]} 25. Nf5 {[%clk 0:01:49.8]} 25... Rfd8 {[%clk 0:01:56.9]} 26. c5
{[%clk 0:01:25.5]} 26... Nb3 {[%clk 0:01:49.3]} 27. Rd1 {[%clk 0:01:16.2]} 27...
Kf8 {[%clk 0:01:02.5]} 28. Nd6 {[%clk 0:01:08]} 28... Be6 {[%clk 0:01:00.1]} 29.
Bb5 {[%clk 0:01:08.3]} 29... Ra5 {[%clk 0:00:56.7]} 30. Rb1 {[%clk 0:00:56.6]}
30... Nxc5 {[%clk 0:00:54.2]} 31. Nb7 {[%clk 0:00:28.9]} 31... Nxb7 {[%clk
0:00:52.9]} 32. Rxb7 {[%clk 0:00:30.8]} 32... Bb3 {[%clk 0:00:50.6]} 33. Rc1
{[%clk 0:00:26.5]} 33... Rd1+ {[%clk 0:00:46.6]} 34. Rxd1 {[%clk 0:00:27.1]}
34... Bxd1 {[%clk 0:00:48.5]} 35. Rb8+ {[%clk 0:00:27.1]} 35... Kf7 {[%clk
0:00:42.8]} 36. Rb7+ {[%clk 0:00:28]} 36... Kg6 {[%clk 0:00:41.3]} 37. Bd3+
{[%clk 0:00:28.1]} 37... Kh6 {[%clk 0:00:42.5]} 38. Rb4 {[%clk 0:00:27.3]} 38...
g6 {[%clk 0:00:37.7]} 39. Kf1 {[%clk 0:00:25]} 39... Rc5 {[%clk 0:00:37.9]} 40.
Ke1 {[%clk 0:00:25.3]} 40... Bb3 {[%clk 0:00:39.3]} 41. Kd2 {[%clk 0:00:24.8]}
41... f5 {[%clk 0:00:40.3]} 42. g3 {[%clk 0:00:25.5]} 42... e4 {[%clk
0:00:39.8]} 43. Bb1 {[%clk 0:00:25.5]} 43... Rd5+ {[%clk 0:00:39.9]} 44. Ke2
{[%clk 0:00:25.6]} 44... Bd1+ {[%clk 0:00:39.8]} 45. Ke1 {[%clk 0:00:26.2]}
45... Bf3 {[%clk 0:00:38.8]} 46. Bc2 {[%clk 0:00:26.2]} 46... Rc5 {[%clk
0:00:40.2]} 47. Bxa4 {[%clk 0:00:26.9]} 47... Rc1+ {[%clk 0:00:40.9]} 48. Kd2
{[%clk 0:00:28.4]} 48... Rf1 {[%clk 0:00:42.4]} 49. Bc2 {[%clk 0:00:21.1]} 49...
Rxf2+ {[%clk 0:00:43.1]} 50. Kc3 {[%clk 0:00:22.5]} 50... Re2 {[%clk 0:00:44.1]}
51. a4 {[%clk 0:00:21.1]} 51... Rxe3+ {[%clk 0:00:45.3]} 52. Kc4 {[%clk
0:00:22.6]} 52... Be2+ {[%clk 0:00:45.9]} 53. Kc5 {[%clk 0:00:23.4]} 53... Rxg3
{[%clk 0:00:47.3]} 54. a5 {[%clk 0:00:24.1]} 54... e3 {[%clk 0:00:48.3]} 55.
Rh4+ {[%clk 0:00:24.7]} 55... Kg7 {[%clk 0:00:48.9]} 56. Rd4 {[%clk 0:00:25.7]}
56... Rxh3 {[%clk 0:00:47.4]} 57. Rd7+ {[%clk 0:00:26.1]} 57... Kf6 {[%clk
0:00:48.6]} 58. Kb6 {[%clk 0:00:25.3]} 58... Rh4 {[%clk 0:00:46.8]} 59. a6
{[%clk 0:00:25.9]} 59... Bxa6 {[%clk 0:00:45.8]} 60. Kxa6 {[%clk 0:00:27.8]}
60... e2 {[%clk 0:00:47]} 61. Rd6+ {[%clk 0:00:27.8]} 61... Ke7 {[%clk
0:00:47.8]} 0-1

[Event "*** Titled Tuesday Blitz"]
[Site "Chess.com"]
[Date "2018.08.07"]
[Round "1"]
[White "chess4life23"]
[Black "Last7Samurai"]
[Result "1-0"]
[WhiteElo "2288"]
[BlackElo "2607"]
[TimeControl "180+2"]
[EndTime "13:09:37 PDT"]
[Termination "chess4life23 won by resignation"]

1. d4 {[%clk 0:03:01.8]} 1... d5 {[%clk 0:03:00.2]} 2. c4 {[%clk 0:02:58.3]}
2... c6 {[%clk 0:02:59.9]} 3. Nc3 {[%clk 0:02:59.4]} 3... Nf6 {[%clk 0:03:00.2]}
4. e3 {[%clk 0:03:00.7]} 4... e6 {[%clk 0:03:00.7]} 5. Nf3 {[%clk 0:03:00.9]}
5... Nbd7 {[%clk 0:03:01.2]} 6. Qc2 {[%clk 0:03:02.2]} 6... Bd6 {[%clk
0:03:01.8]} 7. Bd3 {[%clk 0:03:03.3]} 7... O-O {[%clk 0:03:02.4]} 8. O-O {[%clk
0:03:03.6]} 8... dxc4 {[%clk 0:03:02.7]} 9. Bxc4 {[%clk 0:03:04]} 9... b5 {[%clk
0:03:03.7]} 10. Be2 {[%clk 0:03:05.3]} 10... Bb7 {[%clk 0:03:02.5]} 11. Ng5
{[%clk 0:03:05]} 11... a6 {[%clk 0:02:54.2]} 12. Nce4 {[%clk 0:03:04.8]} 12...
Be7 {[%clk 0:02:53.2]} 13. Bf3 {[%clk 0:03:01.4]} 13... h6 {[%clk 0:02:50.3]}
14. Nxf6+ {[%clk 0:03:00.8]} 14... Nxf6 {[%clk 0:02:52.2]} 15. Ne4 {[%clk
0:02:59.4]} 15... Nxe4 {[%clk 0:02:53]} 16. Bxe4 {[%clk 0:03:00.2]} 16... Qd7
{[%clk 0:02:44.9]} 17. Bd2 {[%clk 0:02:56.8]} 17... a5 {[%clk 0:02:35.4]} 18. a3
{[%clk 0:02:38.4]} 18... b4 {[%clk 0:02:28.3]} 19. axb4 {[%clk 0:02:32.8]} 19...
axb4 {[%clk 0:02:30.2]} 20. Qc4 {[%clk 0:02:26.9]} 20... Rab8 {[%clk 0:02:04.1]}
21. Rfc1 {[%clk 0:02:14.4]} 21... Rfc8 {[%clk 0:01:55.5]} 22. Ra7 {[%clk
0:02:03.9]} 22... c5 {[%clk 0:01:45]} 23. Rxb7 {[%clk 0:01:32.3]} 23... Rxb7
{[%clk 0:01:46.9]} 24. Bxb7 {[%clk 0:01:32.8]} 24... Qxb7 {[%clk 0:01:48.8]} 25.
Bxb4 {[%clk 0:01:33.5]} 25... Rb8 {[%clk 0:01:37]} 26. Bxc5 {[%clk 0:01:18.9]}
26... Bxc5 {[%clk 0:01:24.8]} 27. dxc5 {[%clk 0:01:19]} 27... Qxb2 {[%clk
0:01:24.8]} 28. c6 {[%clk 0:01:20.2]} 28... Rc8 {[%clk 0:01:21.5]} 29. c7 {[%clk
0:01:06.5]} 29... h5 {[%clk 0:01:12.8]} 30. h4 {[%clk 0:01:05.7]} 30... g6
{[%clk 0:01:13.2]} 31. Qc6 {[%clk 0:00:50.8]} 31... Kh7 {[%clk 0:01:11.1]} 32.
g3 {[%clk 0:00:47.7]} 32... Qd2 {[%clk 0:01:11.6]} 33. Kg2 {[%clk 0:00:44.4]}
33... Kh6 {[%clk 0:01:10.3]} 34. Rc4 {[%clk 0:00:42.1]} 34... Kh7 {[%clk
0:01:01.5]} 35. Rd4 {[%clk 0:00:39.9]} 35... Qa5 {[%clk 0:01:00]} 36. Rd7 {[%clk
0:00:40.5]} 36... Kg7 {[%clk 0:00:44.5]} 37. Qxe6 {[%clk 0:00:17.6]} 37... Qa8+
{[%clk 0:00:45.2]} 38. Kh2 {[%clk 0:00:18]} 38... Qf3 {[%clk 0:00:44.2]} 39.
Qe5+ {[%clk 0:00:11.2]} 39... Kh7 {[%clk 0:00:28]} 40. Qf4 {[%clk 0:00:11.5]}
40... Qxf4 {[%clk 0:00:29.5]} 41. gxf4 {[%clk 0:00:12.2]} 41... Kg7 {[%clk
0:00:31.4]} 42. Kg3 {[%clk 0:00:13.7]} 42... Kf6 {[%clk 0:00:33]} 43. Rd6+
{[%clk 0:00:11.4]} 43... Ke7 {[%clk 0:00:30.2]} 44. Rc6 {[%clk 0:00:12.8]} 44...
Kd7 {[%clk 0:00:31.7]} 45. Rc3 {[%clk 0:00:12.5]} 45... f5 {[%clk 0:00:30.8]}
46. f3 {[%clk 0:00:12.1]} 46... Rxc7 {[%clk 0:00:28.3]} 47. Rxc7+ {[%clk
0:00:12.4]} 47... Kxc7 {[%clk 0:00:30.2]} 48. e4 {[%clk 0:00:14.3]} 48... Kd6
{[%clk 0:00:31.4]} 49. Kf2 {[%clk 0:00:14.8]} 49... Kc5 {[%clk 0:00:32.4]} 50.
Ke3 {[%clk 0:00:15.8]} 50... Kc4 {[%clk 0:00:33.8]} 51. e5 {[%clk 0:00:16.2]}
51... Kd5 {[%clk 0:00:34.8]} 52. Kd3 {[%clk 0:00:17.6]} 52... Kc5 {[%clk
0:00:36.2]} 53. Kc3 {[%clk 0:00:18.8]} 53... Kd5 {[%clk 0:00:37.5]} 54. Kb4
{[%clk 0:00:17.8]} 54... g5 {[%clk 0:00:38.3]} 55. fxg5 {[%clk 0:00:15.9]} 55...
Kxe5 {[%clk 0:00:40.2]} 56. Kc3 {[%clk 0:00:14.1]} 56... Kf4 {[%clk 0:00:40]}
57. g6 {[%clk 0:00:14.8]} 57... Kg3 {[%clk 0:00:41]} 58. g7 {[%clk 0:00:15.9]}
58... Kxh4 {[%clk 0:00:42.9]} 59. g8=Q {[%clk 0:00:17.4]} 1-0

[Event "*** Titled Tuesday Blitz"]
[Site "Chess.com"]
[Date "2018.08.07"]
[Round "1"]
[White "ShadyH9"]
[Black "misha_melnichuk"]
[Result "0-1"]
[WhiteElo "2258"]
[BlackElo "2614"]
[TimeControl "180+2"]
[EndTime "13:09:37 PDT"]
[Termination "misha_melnichuk won by resignation"]

1. d4 {[%clk 0:03:01.4]} 1... Nf6 {[%clk 0:03:00.8]} 2. c4 {[%clk 0:02:59.5]}
2... e6 {[%clk 0:03:01.9]} 3. Nf3 {[%clk 0:02:59.5]} 3... Bb4+ {[%clk
0:03:02.8]} 4. Nbd2 {[%clk 0:02:58.9]} 4... O-O {[%clk 0:03:02.8]} 5. a3 {[%clk
0:02:59.5]} 5... Be7 {[%clk 0:03:02.4]} 6. e4 {[%clk 0:02:58.5]} 6... d5 {[%clk
0:03:02.4]} 7. e5 {[%clk 0:02:55.5]} 7... Nfd7 {[%clk 0:03:02.7]} 8. Qc2 {[%clk
0:02:26.4]} 8... c5 {[%clk 0:02:58.3]} 9. Bd3 {[%clk 0:01:57]} 9... h6 {[%clk
0:02:55.6]} 10. O-O {[%clk 0:01:51.1]} 10... Nc6 {[%clk 0:02:50.8]} 11. cxd5
{[%clk 0:01:26.1]} 11... exd5 {[%clk 0:02:47]} 12. Re1 {[%clk 0:01:26.7]} 12...
cxd4 {[%clk 0:02:40.3]} 13. Nb3 {[%clk 0:01:24.1]} 13... Qb6 {[%clk 0:02:17.1]}
14. Bf4 {[%clk 0:01:14.8]} 14... Nc5 {[%clk 0:02:16.5]} 15. Nxc5 {[%clk
0:01:12.9]} 15... Qxc5 {[%clk 0:02:11.6]} 16. h3 {[%clk 0:00:39.8]} 16... Qxc2
{[%clk 0:02:09]} 17. Bxc2 {[%clk 0:00:41.7]} 17... Be6 {[%clk 0:01:54]} 18. Rad1
{[%clk 0:00:42.1]} 18... Rac8 {[%clk 0:01:50.9]} 19. Bb1 {[%clk 0:00:35.4]}
19... Bc5 {[%clk 0:01:38.6]} 20. b4 {[%clk 0:00:19.1]} 20... Bb6 {[%clk
0:01:38.9]} 21. b5 {[%clk 0:00:20.1]} 21... Na5 {[%clk 0:01:39]} 22. Nxd4 {[%clk
0:00:21.1]} 22... Nc4 {[%clk 0:01:30.3]} 23. Nxe6 {[%clk 0:00:11.8]} 23... fxe6
{[%clk 0:01:30.4]} 24. Bg3 {[%clk 0:00:11.7]} 24... Nxa3 {[%clk 0:01:26.9]} 25.
Bg6 {[%clk 0:00:11.6]} 25... Rc2 {[%clk 0:01:21.7]} 26. Bxc2 {[%clk 0:00:10]}
26... Nxc2 {[%clk 0:01:23.1]} 27. Re2 {[%clk 0:00:10.1]} 27... Nd4 {[%clk
0:01:22.2]} 28. Red2 {[%clk 0:00:10.2]} 28... Nxb5 {[%clk 0:01:21.8]} 29. Rb2
{[%clk 0:00:06.9]} 29... Nc3 {[%clk 0:01:16.9]} 30. Rc1 {[%clk 0:00:07]} 30...
Ne4 {[%clk 0:01:17.7]} 31. Kh2 {[%clk 0:00:07]} 31... Rf7 {[%clk 0:01:05]} 32.
Rcc2 {[%clk 0:00:07.7]} 32... Bd4 {[%clk 0:01:02.4]} 33. Ra2 {[%clk 0:00:07.8]}
33... a6 {[%clk 0:01:01.3]} 34. Rc8+ {[%clk 0:00:08.3]} 34... Kh7 {[%clk
0:01:02]} 35. Re8 {[%clk 0:00:07.1]} 35... Nc5 {[%clk 0:00:31.9]} 36. f3 {[%clk
0:00:06.2]} 36... b5 {[%clk 0:00:28.7]} 37. Rd2 {[%clk 0:00:05.6]} 37... Bc3
{[%clk 0:00:27.6]} 38. Rc2 {[%clk 0:00:06.8]} 38... b4 {[%clk 0:00:28.4]} 39.
Bf2 {[%clk 0:00:06.6]} 39... Nd3 {[%clk 0:00:24]} 40. Be3 {[%clk 0:00:05.9]}
40... Bxe5+ {[%clk 0:00:21]} 41. Kg1 {[%clk 0:00:06.5]} 41... b3 {[%clk
0:00:20.5]} 42. Rd2 {[%clk 0:00:07.1]} 42... b2 {[%clk 0:00:20.5]} 43. Rxb2
{[%clk 0:00:03.9]} 43... Bxb2 {[%clk 0:00:17.9]} 44. Rxe6 {[%clk 0:00:05.3]}
44... d4 {[%clk 0:00:18.2]} 45. Bd2 {[%clk 0:00:05.4]} 45... Bc3 {[%clk
0:00:17.7]} 46. Bxc3 {[%clk 0:00:03.3]} 0-1

[Event "*** Titled Tuesday Blitz"]
[Site "Chess.com"]
[Date "2018.08.07"]
[Round "1"]
[White "capatl"]
[Black "luca_va99"]
[Result "0-1"]
[WhiteElo "2498"]
[BlackElo "2474"]
[TimeControl "180+2"]
[EndTime "13:09:48 PDT"]
[Termination "luca_va99 won by resignation"]

1. c4 {[%clk 0:02:58.1]} 1... c5 {[%clk 0:02:58.2]} 2. Nc3 {[%clk 0:02:58.3]}
2... Nc6 {[%clk 0:02:59.5]} 3. Nf3 {[%clk 0:02:58.3]} 3... e5 {[%clk 0:02:55.6]}
4. d3 {[%clk 0:02:58.1]} 4... d6 {[%clk 0:02:56.5]} 5. g3 {[%clk 0:02:58.7]}
5... g6 {[%clk 0:02:57.9]} 6. Bg2 {[%clk 0:02:59.7]} 6... Bg7 {[%clk 0:02:59.2]}
7. O-O {[%clk 0:02:59.5]} 7... Nf6 {[%clk 0:03:00.6]} 8. Rb1 {[%clk 0:02:59.7]}
8... a5 {[%clk 0:03:00.3]} 9. a3 {[%clk 0:03:00.1]} 9... O-O {[%clk 0:03:01.1]}
10. Nd2 {[%clk 0:02:57.6]} 10... Bd7 {[%clk 0:03:00.5]} 11. Nde4 {[%clk
0:02:57.3]} 11... Nxe4 {[%clk 0:02:59.4]} 12. Nxe4 {[%clk 0:02:54.1]} 12... Qc7
{[%clk 0:02:51.8]} 13. Bd2 {[%clk 0:02:52.1]} 13... h6 {[%clk 0:02:50.2]} 14. b4
{[%clk 0:02:41.1]} 14... f5 {[%clk 0:02:47.6]} 15. Nc3 {[%clk 0:02:41.7]} 15...
axb4 {[%clk 0:02:34.8]} 16. Nd5 {[%clk 0:02:30.2]} 16... Qd8 {[%clk 0:02:16.1]}
17. axb4 {[%clk 0:02:29.5]} 17... cxb4 {[%clk 0:02:15.9]} 18. Bxb4 {[%clk
0:02:11.2]} 18... Nxb4 {[%clk 0:01:58.2]} 19. Nxb4 {[%clk 0:02:08.9]} 19... Ba4
{[%clk 0:01:58.3]} 20. Qc1 {[%clk 0:02:07.7]} 20... Ra7 {[%clk 0:01:53.7]} 21.
Qe3 {[%clk 0:02:04.3]} 21... Qa5 {[%clk 0:01:41.2]} 22. Nd5 {[%clk 0:01:55.1]}
22... Kh7 {[%clk 0:01:37.6]} 23. Rb6 {[%clk 0:01:42.5]} 23... Bc6 {[%clk
0:01:34.4]} 24. Rfb1 {[%clk 0:01:37.7]} 24... f4 {[%clk 0:01:25.5]} 25. Qc1
{[%clk 0:01:17.8]} 25... fxg3 {[%clk 0:01:18.3]} 26. hxg3 {[%clk 0:01:18.2]}
26... Qc5 {[%clk 0:01:12]} 27. Qe3 {[%clk 0:01:13.5]} 27... Qa3 {[%clk
0:01:03.4]} 28. R6b3 {[%clk 0:01:07.8]} 28... Qc5 {[%clk 0:00:54.2]} 29. Qxc5
{[%clk 0:01:04.5]} 29... dxc5 {[%clk 0:00:54.7]} 30. Nc3 {[%clk 0:01:06.4]}
30... e4 {[%clk 0:00:36.5]} 31. Bxe4 {[%clk 0:00:57.7]} 31... Bxc3 {[%clk
0:00:29.7]} 32. Bxc6 {[%clk 0:00:58.6]} 32... bxc6 {[%clk 0:00:30.7]} 33. Rxc3
{[%clk 0:00:58.9]} 33... Ra2 {[%clk 0:00:31.5]} 34. Kf1 {[%clk 0:00:55.3]} 34...
Re8 {[%clk 0:00:30.9]} 35. Re1 {[%clk 0:00:53.4]} 35... Re5 {[%clk 0:00:31.2]}
36. Rb3 {[%clk 0:00:53.1]} 36... Kg7 {[%clk 0:00:29.1]} 37. Rb7+ {[%clk
0:00:51.8]} 37... Kf6 {[%clk 0:00:29.4]} 38. Rc7 {[%clk 0:00:51.5]} 38... Re6
{[%clk 0:00:30.2]} 39. Rc8 {[%clk 0:00:49.4]} 39... Ke5 {[%clk 0:00:30.6]} 40.
Rh8 {[%clk 0:00:45.9]} 40... h5 {[%clk 0:00:30.8]} 41. Rf8 {[%clk 0:00:45.8]}
41... Kd4 {[%clk 0:00:30.8]} 42. Rf3 {[%clk 0:00:46]} 42... Kc3 {[%clk
0:00:31.2]} 43. Re3 {[%clk 0:00:45.1]} 43... Rxe3 {[%clk 0:00:27.9]} 44. fxe3
{[%clk 0:00:47]} 44... Kd2 {[%clk 0:00:29.4]} 45. Kf2 {[%clk 0:00:44.9]} 45...
Ra8 {[%clk 0:00:29.7]} 46. Rb1 {[%clk 0:00:40.4]} 46... Rf8+ {[%clk 0:00:29.7]}
47. Kg2 {[%clk 0:00:38.8]} 47... Kxe3 {[%clk 0:00:29.7]} 48. Rb6 {[%clk
0:00:36.4]} 48... Rf6 {[%clk 0:00:28.2]} 49. Rb8 {[%clk 0:00:29.5]} 49... Kxe2
{[%clk 0:00:28.7]} 50. Rd8 {[%clk 0:00:30.4]} 50... Ke3 {[%clk 0:00:29.3]} 51.
Rd7 {[%clk 0:00:30.6]} 51... Re6 {[%clk 0:00:29.6]} 52. Rd8 {[%clk 0:00:26.3]}
52... Kd2 {[%clk 0:00:29.6]} 53. Kf3 {[%clk 0:00:25.2]} 53... Re3+ {[%clk
0:00:29.9]} 54. Kf4 {[%clk 0:00:25.5]} 54... Rxd3 {[%clk 0:00:31.3]} 55. Rc8
{[%clk 0:00:14.8]} 55... Rd4+ {[%clk 0:00:31.3]} 56. Ke5 {[%clk 0:00:12.5]}
56... Rxc4 {[%clk 0:00:31.5]} 57. Rxc6 {[%clk 0:00:13.1]} 57... Rg4 {[%clk
0:00:32.3]} 58. Rd6+ {[%clk 0:00:08.6]} 58... Ke3 {[%clk 0:00:32.5]} 0-1